lending/lending_fUSD_20240908
["ID","MTS","AMOUNT","RATE_DAILY","PERIOD"]
[337558529,1725814243959,-1304.07703257,0.0001499,3]
[337558530,1725814243968,-2173.46172095,0.0001499,3]
[337558531,1725814243978,-231469.215648,0.0001499,3]
[337558532,1725814243987,-1110.28091693,0.00014999,5]
[337558533,1725814243997,-1070.0,0.00015,2]
[337558534,1725814244006,-47380.33528499,0.00015,2]
[337558535,1725814244015,-1389071.54692927,0.00015,2]
[337558536,1725814246158,-173.247949,0.00014382,2]
[337558537,1725814246168,-1034.752051,0.00015,2]
[337558538,1725814246226,-335.30570427,0.00015,2]
[337558539,1725814246238,-259.18571279,0.00015,2]
[337558540,1725814246250,-3097.24075919,0.00015,2]
[337558541,1725814246302,-3464.78695368,0.00015,2]
[337558542,1725814246314,-692.17038355,0.00015,2]
[337558543,1725814246461,-677.57587675,0.00015,2]
[337558544,1725814246475,-13049.73642681,0.00015,2]
[337558545,1725814246486,-352.31795085,0.00015,2]
[337558546,1725814246534,-34665.0926168,0.00015,2]
[337558552,1725815186195,342.56,0.00011783,2]
[337558554,1725815410977,167.09,0.00010959,2]
[337558560,1725815432266,-1000.0,0.00013556,2]
[337558561,1725815432276,-151.99,0.00013569,2]
[337558562,1725815432286,-250.0,0.00013681,2]
[337558563,1725815432295,-196.25,0.00013695,2]
[337558564,1725815432305,-300.0,0.00013698,2]
[337558565,1725815432315,-182.79,0.00013699,2]
[337558566,1725815432325,-790.75515676,0.00013699,2]
[337558567,1725815432338,-1960.24484324,0.00013699,2]
[337558568,1725815432347,-167.57,0.00013699,2]
[337558569,1725815432357,-187.75,0.00013699,2]
[337558570,1725815432366,-200.0,0.00013702,2]
[337558571,1725815432376,-150.0,0.00013703,2]
[337558572,1725815432386,-1088.19636425,0.00013704,2]
[337558573,1725815432397,-2233.16988502,0.00013704,2]
[337558574,1725815432409,-10808.08059513,0.00013704,2]
[337558575,1725815432420,-69902.161575,0.00013704,2]
[337558576,1725815432432,-732.10144154,0.00013704,2]
[337558577,1725815432444,-647.470824,0.00013704,2]
[337558578,1725815432460,-676.1,0.00013704,2]
[337558579,1725815432471,-24979.78840758,0.00013704,2]
[337558580,1725815432483,-1245.568807,0.00013704,2]
[337558581,1725815432495,-78230.13210048,0.00013704,2]
[337558582,1725815432507,-1684.62,0.00013709,2]
[337558583,1725815432517,-250.0,0.00013723,2]
[337558584,1725815432527,-500.0,0.00013747,2]
[337558585,1725815432537,-153.8,0.0001375,2]
[337558586,1725815432546,-32895.3,0.0001375,2]
[337558587,1725815432556,-188.76,0.00013949,2]
[337558588,1725815432566,-499.99,0.00013971,2]
[337558589,1725815432576,-1231.36,0.00013971,2]
[337558591,1725815432586,-342.56,0.00014047,2]
[337558593,1725815432595,-600.0,0.00014054,2]
[337558595,1725815432604,-600.0,0.0001425,2]
[337558597,1725815432615,-600.0,0.0001425,2]
[337558598,1725815432624,-600.0,0.0001425,2]
[337558600,1725815432634,-600.0,0.0001425,2]
[337558602,1725815432644,-600.0,0.0001425,2]
[337558604,1725815432653,-160.873095,0.00014382,2]
[337558606,1725815432663,-192.25,0.00014394,2]
[337558608,1725815432673,-225.92306352,0.00014564,2]
[337558610,1725815432682,-16094.0578,0.0001458,2]
[337558611,1725815432692,-1685.0112,0.0001458,2]
[337558613,1725815432702,-167.57,0.00014612,2]
[337558615,1725815432711,-187.064,0.00014615,2]
[337558617,1725815432721,-946.333,0.00014615,2]
[337558619,1725815432730,-9082.949,0.00014615,2]
[337558621,1725815432740,-1144.0,0.00014615,2]
[337558623,1725815432750,-1078.0,0.00014615,2]
[337558625,1725815432759,-160.873095,0.00014622,2]
[337558627,1725815432769,-200.199,0.00014622,2]
[337558629,1725815432779,-271.79927,0.00014775,2]
[337558631,1725815432788,-11764.63066246,0.0001485,2]
[337558633,1725815432798,-4644.06375209,0.0001485,2]
[337558635,1725815432808,-160.873095,0.00014862,2]
[337558637,1725815432817,-329.17987969,0.00014899,2]
[337558639,1725815432827,-329.17987969,0.00014899,2]
[337558641,1725815432837,-329.17987969,0.000149,2]
[337558643,1725815432847,-1189.8323,0.000149,2]
[337558645,1725815432856,-980.56498919,0.000149,2]
[337558647,1725815432866,-508.7514768,0.000149,2]
[337558649,1725815432875,-2008.9436914,0.000149,2]
[337558651,1725815432885,-500.0,0.000149,2]
[337558653,1725815432895,-35000.0,0.000149,2]
[337558655,1725815432905,-191.94175387,0.000149,2]
[337558657,1725815432915,-337.71316878,0.000149,2]
[337558659,1725815432925,-320.3975,0.000149,2]
[337558660,1725815432935,-165.19422617,0.000149,2]
[337558662,1725815432945,-329.17987969,0.000149,2]
[337558664,1725815432954,-2374.7412883,0.000149,2]
[337558667,1725815432967,-3094.63215291,0.000149,2]
[337558669,1725815432980,-2763.18092288,0.000149,2]
[337558671,1725815432996,-2839.45774073,0.000149,2]
[337558673,1725815433006,-447.0,0.00014905,2]
[337558675,1725815433015,-1260.0,0.00014905,2]
[337558677,1725815433025,-624.0,0.00014905,2]
[337558679,1725815433035,-1546.0,0.00014905,2]
[337558680,1725815433049,-931.0,0.00014905,2]
[337558682,1725815433058,-150.0,0.00014905,2]
[337558684,1725815433069,-557.0,0.00014905,2]
[337558685,1725815433079,-810.0,0.00014905,2]
[337558686,1725815433089,-1899.0,0.00014905,2]
[337558687,1725815433100,-552.0,0.00014905,2]
[337558688,1725815433111,-805.0,0.00014905,2]
[337558689,1725815433121,-1922.0,0.00014905,2]
[337558690,1725815433131,-3341.0,0.00014905,2]
[337558691,1725815433141,-1134.0,0.00014905,2]
[337558692,1725815433151,-161.00841264,0.00014973,2]
[337558693,1725815433160,-150.77,0.0001498,2]
[337558694,1725815433170,-386.78227157,0.00014989,2]
[337558695,1725815433180,-200189.591912,0.0001499,3]
[337558696,1725815433189,-150.77,0.0001499,2]
[337558697,1725815433199,-150.77,0.0001499,2]
[337558698,1725815433208,-150.77,0.0001499,2]
[337558699,1725815433218,-150.77,0.0001499,2]
[337558700,1725815433227,-150.77,0.0001499,2]
[337558701,1725815433237,-150.0,0.00014999,2]
[337558702,1725815433247,-195.62232328,0.00014999,2]
[337558703,1725815433257,-1118.37297062,0.00014999,2]
[337558704,1725815433266,-1000.0,0.00014999,2]
[337558705,1725815433276,-1000.0,0.00014999,2]
[337558706,1725815433286,-1000.0,0.00014999,2]
[337558707,1725815433295,-1000.0,0.00014999,2]
[337558708,1725815433305,-1000.0,0.00014999,2]
[337558709,1725815433315,-1000.0,0.00014999,2]
[337558710,1725815433327,-1000.0,0.00014999,2]
[337558711,1725815433336,-1008.8556,0.00014999,2]
[337558712,1725815433346,-8653.82453148,0.00014999,2]
[337558713,1725815433355,-1028.0,0.00015,2]
[337558714,1725815433364,-128588.43664,0.00015,2]
[337558718,1725815438259,-195.62232327,0.00014999,2]
[337558720,1725815438270,-439.98017673,0.00014999,2]
[337558721,1725815438315,-119.20630858,0.00014999,2]
[337558722,1725815438325,-487.79369142,0.00015,2]
[337558723,1725815438427,-305.07545363,0.00015,2]
[337558724,1725815438440,-2552.2244748,0.00015,2]
[337558725,1725815438486,-1427.2185654,0.00015,2]
[337558726,1725815438544,-18917.85545725,0.00015,2]
[337558727,1725815438554,-39650.43900792,0.00015,2]
[337558728,1725815438564,-1673577.66599277,0.00015,2]
[337558729,1725815438576,-4677.82886025,0.00015,2]
[337558731,1725815438604,-269.085,0.00015,2]
[337558741,1725815440345,-268.29,0.00015,2]
[337558742,1725815440357,-6873.98197552,0.00015,2]
[337558743,1725815440367,-17243.9459554,0.00015,2]
[337558744,1725815440378,-2697.85,0.00015,2]
[337558745,1725815440457,-1500.0,0.00015,2]
[337558746,1725815440469,-27000.0,0.00015,2]
[337558747,1725815440569,-3653.02000002,0.00015,2]
[337558748,1725815440628,-264.7617,0.00015,2]
[337558749,1725815440685,-485.755,0.00015,2]
[337558809,1725815443358,-5949.81,0.00015,2]
[337558810,1725815443463,-482.285006,0.00015,2]
[337558817,1725815443693,-4329.76,0.00015,2]
[337558818,1725815444153,-14194.49109469,0.00015,2]
[337558821,1725815446472,-270.27,0.00015,2]
[337558822,1725815446530,-276.75,0.00015,2]
[337558823,1725815446698,-669.58337309,0.00015,2]
[337558861,1725815560541,750.0,0.00011,2]
[337558862,1725815656678,-207.0,0.00013603,2]
[337558863,1725815656700,-521.72967782,0.00013604,2]
[337558864,1725815656723,-7474.3686,0.00013604,2]
[337558865,1725815656744,-250.0,0.00013954,2]
[337558866,1725815656766,-250.0,0.00013997,2]
[337558867,1725815727346,318.82,0.00012079,2]
[337558868,1725815763495,200.46914915,0.00027,120]
[337558869,1725815822128,200.0,0.00013996,2]
[337558870,1725815841008,3640.2188109,0.00025,60]
[337558871,1725815863430,196.25,0.00013937,2]
[337558872,1725815888069,169.22,0.00013923,2]
[337558873,1725815890268,1000.0,0.00013923,2]
[337558874,1725815900863,201.15,0.00010959,2]
[337558875,1725815978205,250.0,0.00013907,2]
[337558876,1725816006686,246.64,0.00013928,2]
[337558877,1725816030523,200.0,0.00013934,2]
[337558878,1725816096460,174.63,0.00013939,2]
[337558879,1725816126591,2751.0,0.00013939,2]
[337558880,1725816150039,250.0,0.00013944,2]
[337558881,1725816176220,500.0,0.00013947,2]
[337558882,1725816208901,1485.1,0.0001399,2]
[337558883,1725816223129,156.45,0.00013699,2]
[337558884,1725816295814,172.63,0.00013999,2]
[337558885,1725816308965,59893.01172218,0.00013,2]
[337558886,1725816308998,47482.28,0.00013,2]
[337558887,1725816310488,313.39,0.00012072,2]
[337558888,1725816349737,-10000.0,0.00013,2]
[337558889,1725816350118,-10000.0,0.00013,2]
[337558890,1725816350488,-10000.0,0.00013,2]
[337558891,1725816350846,-10000.0,0.00013,2]
[337558892,1725816351217,-10000.0,0.00013,2]
[337558893,1725816351624,-10000.0,0.00013,2]
[337558894,1725816351966,-10000.0,0.00013,2]
[337558895,1725816352313,-10000.0,0.00013,2]
[337558896,1725816352681,-10000.0,0.00013,2]
[337558897,1725816353034,-10000.0,0.00013,2]
[337558898,1725816353421,-10000.0,0.00013,2]
[337558899,1725816355646,-10000.0,0.00013,2]
[337558900,1725816355688,-10000.0,0.00013,2]
[337558901,1725816355734,-10000.0,0.00013,2]
[337558902,1725816367231,-9700.0,0.00013,2]
[337558912,1725816534953,-500.0,0.00012999,2]
[337558913,1725816534973,-500.0,0.00012999,2]
[337558914,1725816534996,-500.0,0.00012999,2]
[337558915,1725816535021,-500.0,0.00012999,2]
[337558916,1725816535043,-500.0,0.00012999,2]
[337558917,1725816535063,-500.0,0.00012999,2]
[337558918,1725816535346,-337.415803,0.00012999,2]
[337558919,1725816535368,-494.04001195,0.00012999,2]
[337558920,1725816535389,-500.0,0.00012999,2]
[337558921,1725816535410,-500.0,0.00012999,2]
[337558922,1725816535432,-500.0,0.00012999,2]
[337558923,1725816535452,-500.0,0.00012999,2]
[337558924,1725816535473,-500.0,0.00012999,2]
[337558925,1725816535494,-500.0,0.00012999,2]
[337558926,1725816535516,-500.0,0.00012999,2]
[337558927,1725816535536,-261.75753357,0.00012999,2]
[337558928,1725816535557,-500.0,0.00012999,2]
[337558929,1725816535578,-500.0,0.00012999,2]
[337558930,1725816535599,-500.0,0.00012999,2]
[337558931,1725816535620,-500.0,0.00012999,2]
[337558932,1725816535641,-406.78665148,0.00012999,2]
[337558933,1725816535678,-115.47227139,0.00012999,2]
[337558934,1725816535699,-500.0,0.00012999,2]
[337558935,1725816535719,-500.0,0.00012999,2]
[337558936,1725816535740,-500.0,0.00012999,2]
[337558937,1725816535762,-500.0,0.00012999,2]
[337558938,1725816535783,-500.0,0.00012999,2]
[337558939,1725816535809,-64.78620267,0.00013,2]
[337558940,1725816535829,-7319.74152594,0.00013,2]
[337558941,1725816535871,-10000.0,0.00013,2]
[337558942,1725816536230,-10000.0,0.00013,2]
[337558943,1725816536527,-10000.0,0.00013,2]
[337558944,1725816536941,-10000.0,0.00013,2]
[337558945,1725816537330,-10000.0,0.00013,2]
[337558946,1725816538463,-10000.0,0.00013,2]
[337558947,1725816539364,-10000.0,0.00013,2]
[337558948,1725816540431,-10000.0,0.00013,2]
[337558949,1725816566773,-300.0,0.00012999,2]
[337558950,1725816566798,-9700.0,0.00013,2]
[337558951,1725816573395,-8688.65965629,0.00013,2]
[337558954,1725816573482,-7298.98801058,0.00013,2]
[337558957,1725816573916,-9347.0,0.00013,2]
[337558958,1725816597886,-420.6543901,0.00012999,2]
[337558959,1725816597917,-500.0,0.00012999,2]
[337558960,1725816597945,-429.3456099,0.00012999,2]
[337558961,1725816607467,-300.0,0.00012998,2]
[337558962,1725816607488,-150.0,0.00012998,2]
[337558963,1725816607510,-70.6543901,0.00012999,2]
[337558964,1725816607531,-500.0,0.00012999,2]
[337558965,1725816607552,-500.0,0.00012999,2]
[337558966,1725816607575,-196.64648908,0.00012999,2]
[337558967,1725816607596,-500.0,0.00012999,2]
[337558968,1725816607617,-500.0,0.00012999,2]
[337558969,1725816607638,-500.0,0.00012999,2]
[337558970,1725816607659,-500.0,0.00012999,2]
[337558971,1725816607679,-251.45374791,0.00012999,2]
[337558972,1725816607699,-500.0,0.00012999,2]
[337558973,1725816607720,-500.0,0.00012999,2]
[337558974,1725816607742,-377.89850256,0.00012999,2]
[337558975,1725816607762,-500.0,0.00012999,2]
[337558976,1725816607783,-500.0,0.00012999,2]
[337558977,1725816607804,-500.0,0.00012999,2]
[337558978,1725816607829,-500.0,0.00012999,2]
[337558979,1725816607850,-500.0,0.00012999,2]
[337558980,1725816607872,-500.0,0.00012999,2]
[337558981,1725816607893,-273.34687035,0.00012999,2]
[337558988,1725816631440,-151.24,0.0001299,2]
[337558989,1725816631450,-226.65312965,0.00012999,2]
[337558990,1725816631460,-1216.55188848,0.00013,2]
[337558991,1725816631471,-1489.65296338,0.00013,2]
[337558992,1725816631483,-1339.32568212,0.00013,2]
[337558993,1725816631494,-315.0,0.00013,2]
[337558994,1725816631505,-787.72537109,0.00013,2]
[337558995,1725816631517,-809.14403611,0.00013,2]
[337558996,1725816631528,-1697.0288294,0.00013,2]
[337558997,1725816631539,-2862.03116841,0.00013,2]
[337558998,1725816631552,-909.30987856,0.00013,2]
[337558999,1725816631563,-636.79253411,0.00013,2]
[337559000,1725816631574,-9920.5139223,0.00013,2]
[337559001,1725816631586,-474.46635641,0.00013,2]
[337559002,1725816631597,-501.23538144,0.00013,2]
[337559003,1725816631608,-2903.71306986,0.00013,2]
[337559004,1725816631619,-3421.55845167,0.00013,2]
[337559005,1725816631631,-2228.53585342,0.00013,2]
[337559006,1725816631645,-603.91888408,0.00013,2]
[337559007,1725816631656,-6683.26958659,0.00013,2]
[337559008,1725816631667,-740.97,0.00013,2]
[337559009,1725816631706,-619.65174307,0.00013,2]
[337559010,1725816631717,-1381.95190557,0.00013,2]
[337559011,1725816631728,-712.02367317,0.00013,2]
[337559012,1725816631739,-2408.87747833,0.00013,2]
[337559013,1725816631750,-4036.74748476,0.00013,2]
[337559014,1725816631761,-19289.99999953,0.00013,2]
[337559015,1725816631772,-6753.55953814,0.00013,2]
[337559023,1725816637646,-539399.19761145,0.00013,2]
[337559024,1725816637658,-18943.76812934,0.00013,2]
[337559025,1725816637707,-32424.92472288,0.00013,2]
[337559026,1725816637719,-509.16789362,0.00013,2]
[337559027,1725816637730,-1294.19060398,0.00013,2]
[337559028,1725816637741,-1035.7815816,0.00013,2]
[337559029,1725816637753,-1959.02575318,0.00013,2]
[337559030,1725816637764,-7969.17193469,0.00013,2]
[337559031,1725816637775,-3458.69314524,0.00013,2]
[337559032,1725816637797,-1019.83248483,0.00013,2]
[337559033,1725816637808,-2613.31048833,0.00013,2]
[337559070,1725816639516,-844.59940541,0.00013,2]
[337559071,1725816639528,-825.77211728,0.00013,2]
[337559072,1725816639539,-262.69727424,0.00013,2]
[337559073,1725816639550,-6905.47315721,0.00013,2]
[337559074,1725816639561,-478.75263346,0.00013,2]
[337559075,1725816639572,-1663.5002,0.00013,2]
[337559076,1725816639583,-83348.20398924,0.00013,2]
[337559077,1725816639595,-660.549,0.00013,2]
[337559078,1725816639606,-476.45777715,0.00013,2]
[337559079,1725816639616,-300.14566,0.00013,2]
[337559080,1725816639649,-889.49999995,0.00013,2]
[337559081,1725816639660,-998.56,0.00013,2]
[337559082,1725816639671,-400.075,0.00013,2]
[337559083,1725816639683,-1324.73356299,0.00013,2]
[337559084,1725816639694,-346.72870787,0.00013,2]
[337559085,1725816639774,-475127.56990678,0.00013,2]
[337559086,1725816639786,-1986.34492326,0.00013,2]
[337559087,1725816639834,-6855.46337405,0.00013,2]
[337559088,1725816639846,-578.06080476,0.00013,2]
[337559089,1725816639861,-304.33735203,0.00013,2]
[337559090,1725816639872,-271.696,0.00013,2]
[337559093,1725816640741,-0.15915429,0.00013,2]
[337559094,1725816640753,-33598.95918226,0.00013,2]
[337559095,1725816640764,-38721.42066455,0.00013,2]
[337559096,1725816640775,-5214.59473044,0.00013,2]
[337559097,1725816640785,-602.7973578,0.00013,2]
[337559098,1725816640796,-6794.11093316,0.00013,2]
[337559099,1725816640806,-2266.00000008,0.00013,2]
[337559100,1725816640817,-2303.5,0.00013,2]
[337559111,1725816642594,-336.84091214,0.00013,2]
[337559113,1725816642605,-500.57827625,0.00013,2]
[337559114,1725816642708,-13190.16168377,0.00013,2]
[337559115,1725816642768,-1202.82442801,0.00013,2]
[337559119,1725816643016,-6153.29726802,0.00013,2]
[337559121,1725816646179,-5266.159,0.00013,2]
[337559122,1725816646191,-2008.43148739,0.00013,2]
[337559123,1725816646202,-1591.70975294,0.00013,2]
[337559124,1725816646252,-595.8999,0.00013,2]
[337559125,1725816646263,-506.86287789,0.00013,2]
[337559126,1725816762715,381.28,0.00010959,2]
[337559127,1725816897520,321.56,0.0001114,2]
[337559128,1725816947142,152.379375,0.00025,60]
[337559129,1725816978404,158.37,0.00010959,2]
[337559130,1725817301049,250.0,0.00012364,2]
[337559131,1725817344197,258.81,0.00012364,2]
[337559132,1725817362951,750.0,0.00011,2]
[337559133,1725817443272,12604.27,0.00012387,2]
[337559134,1725817462075,305.48,0.00010472,2]
[337559135,1725817468805,200.13472148,0.00012325,2]
[337559136,1725817489761,196.25,0.00012399,2]
[337559137,1725817624719,349.41,0.00012488,2]
[337559138,1725817639295,151.24,0.00012389,2]
[337559139,1725817639386,151.24,0.0001242,2]
[337559140,1725817639769,151.24,0.00012451,2]
[337559144,1725817775961,3778.01,0.00012408,2]
[337559145,1725817788205,-305.48,0.00012736,2]
[337559146,1725817788233,-353.0,0.00012786,2]
[337559147,1725817788262,-700.64190173,0.00012787,2]
[337559148,1725817828051,250.0,0.00012464,2]
[337559168,1725817831603,-1000.0,0.00012514,2]
[337559169,1725817831612,-150.0,0.00012877,2]
[337559171,1725817831622,-300.0,0.00012898,2]
[337559173,1725817831633,-6132.93417425,0.00012899,2]
[337559175,1725817831642,-4067.95659312,0.00012914,2]
[337559177,1725817831652,-177.56180833,0.00012914,2]
[337559179,1725817831661,-185.73578068,0.00012914,2]
[337559181,1725817831671,-150.0,0.00012952,2]
[337559183,1725817831680,-499.99,0.00012953,2]
[337559185,1725817831690,-20593.64,0.00012953,2]
[337559187,1725817831699,-6451.07483082,0.00012953,2]
[337559190,1725817831711,-3548.91516918,0.00012953,2]
[337559192,1725817831720,-181.26732194,0.00012958,2]
[337559194,1725817831730,-1486.49,0.00012958,2]
[337559196,1725817831739,-499.99,0.00012958,2]
[337559197,1725817831749,-286.8,0.00012958,2]
[337559198,1725817831758,-1.53750888,0.00012968,2]
[337559199,1725817831773,-978.62989679,0.00012968,2]
[337559200,1725817831784,-130.86259433,0.00012968,2]
[337559201,1725817831794,-555.84254334,0.00012968,2]
[337559202,1725817831805,-1132.38722525,0.00012968,2]
[337559203,1725817831816,-302.7944356,0.00012968,2]
[337559204,1725817831828,-12440.35579581,0.00012968,2]
[337559205,1725817831837,-218.54,0.00012968,2]
[337559206,1725817831847,-5703.7,0.00012968,2]
[337559207,1725817831857,-500.0,0.00012973,2]
[337559208,1725817831866,-160.95,0.0001299,2]
[337559209,1725817831875,-198.569,0.00012996,2]
[337559210,1725817831885,-167.662,0.00012996,2]
[337559211,1725817831894,-150.99,0.00012997,2]
[337559212,1725817831904,-500.0,0.00012999,2]
[337559213,1725817831913,-500.0,0.00012999,2]
[337559215,1725817831922,-500.0,0.00012999,2]
[337559217,1725817831932,-500.0,0.00012999,2]
[337559219,1725817831941,-500.0,0.00012999,2]
[337559221,1725817831950,-425.91505848,0.00012999,2]
[337559223,1725817831959,-500.0,0.00012999,2]
[337559234,1725817831968,-500.0,0.00012999,2]
[337559235,1725817832236,-439.82899562,0.00012999,2]
[337559236,1725817832246,-354.02479611,0.00012999,2]
[337559237,1725817832256,-500.0,0.00012999,2]
[337559238,1725817832265,-500.0,0.00012999,2]
[337559239,1725817832275,-497.72570123,0.00012999,2]
[337559240,1725817832288,-500.0,0.00012999,2]
[337559241,1725817832297,-500.0,0.00012999,2]
[337559242,1725817832307,-500.0,0.00012999,2]
[337559243,1725817832317,-500.0,0.00012999,2]
[337559244,1725817832328,-500.0,0.00012999,2]
[337559245,1725817832339,-500.0,0.00012999,2]
[337559246,1725817832349,-500.0,0.00012999,2]
[337559247,1725817832359,-500.0,0.00012999,2]
[337559248,1725817832369,-244.15848714,0.00012999,2]
[337559249,1725817832380,-500.0,0.00012999,2]
[337559250,1725817832389,-500.0,0.00012999,2]
[337559251,1725817832399,-500.0,0.00012999,2]
[337559252,1725817832408,-300.0,0.00012999,2]
[337559253,1725817832418,-645.8,0.00012999,3]
[337559254,1725817832428,-418648.53748985,0.00013,2]
[337559255,1725817832439,-1092.85082834,0.00013,2]
[337559256,1725817832451,-428.45648914,0.00013,2]
[337559257,1725817832462,-711.01118688,0.00013,2]
[337559258,1725817832473,-1827.91072361,0.00013,2]
[337559259,1725817832489,-69105.87262194,0.00013,2]
[337559260,1725817832501,-2186.65209013,0.00013,2]
[337559261,1725817832513,-8774.31523528,0.00013,2]
[337559262,1725817832525,-7211.0,0.00013,2]
[337559263,1725817832536,-536.83568415,0.00013,2]
[337559264,1725817832548,-194703.31051519,0.00013,2]
[337559265,1725817832559,-4548.09399337,0.00013,2]
[337559266,1725817832571,-486.59595781,0.00013,2]
[337559267,1725817832588,-835.76890851,0.00013,2]
[337559268,1725817837783,-221.61260684,0.00012914,2]
[337559269,1725817837793,-70.45245105,0.00012997,2]
[337559270,1725817837842,-2644.17619719,0.00012997,2]
[337559271,1725817837903,-105353.87832432,0.00012997,2]
[337559272,1725817837913,-688182.58012397,0.00013,2]
[337559273,1725817837922,-500.0,0.00013014,2]
[337559274,1725817837932,-6132.93417425,0.00013121,2]
[337559275,1725817837941,-258.84,0.00013318,2]
[337559276,1725817837950,-6132.93417425,0.00013344,2]
[337559277,1725817837959,-176.48,0.00013459,2]
[337559278,1725817837969,-6132.93417425,0.00013566,2]
[337559279,1725817837978,-157.7,0.00013699,2]
[337559280,1725817837987,-172.63,0.00013699,2]
[337559281,1725817837996,-200.0,0.00013699,2]
[337559282,1725817838006,-6132.93417425,0.00013788,2]
[337559283,1725817838015,-56328.5351054,0.000138,3]
[337559284,1725817838024,-3000.0,0.0001386,2]
[337559285,1725817838033,-74575.13766733,0.000139,3]
[337559324,1725817838998,-6186.18,0.000139,3]
[337559325,1725817839035,-1264.43557993,0.000139,3]
[337559326,1725817839051,-545.50301236,0.000139,3]
[337559327,1725817839655,-555.51049672,0.000139,3]
[337559328,1725817839666,-1905.925,0.000139,3]
[337559329,1725817839753,-1620.92916631,0.000139,3]
[337559330,1725817839765,-17644.24950535,0.000139,3]
[337559331,1725817839775,-226.003,0.000139,2]
[337559332,1725817839785,-258.81,0.00013909,2]
[337559333,1725817839795,-349.11737599,0.00013927,2]
[337559334,1725817839804,-1000.0,0.00013948,2]
[337559335,1725817839813,-1000.0,0.00013948,2]
[337559336,1725817839822,-1000.0,0.00013948,2]
[337559337,1725817839831,-1000.0,0.00013948,2]
[337559338,1725817839845,-1000.0,0.00013948,2]
[337559339,1725817839854,-1000.0,0.00013948,2]
[337559340,1725817839863,-1000.0,0.00013948,2]
[337559341,1725817839872,-332.0,0.00013948,2]
[337559342,1725817839881,-4062.23143927,0.00014011,2]
[337559343,1725817839893,-435.92970156,0.00014011,2]
[337559344,1725817839993,-272.89419,0.00014011,2]
[337559345,1725817840004,-1361.87884342,0.00014011,2]
[337559346,1725817840014,-1000.0,0.00014038,2]
[337559347,1725817840023,-1000.0,0.00014038,2]
[337559348,1725817840032,-1000.0,0.00014038,2]
[337559349,1725817840042,-1000.0,0.00014038,2]
[337559350,1725817840051,-1000.0,0.00014038,2]
[337559352,1725817840061,-202.94352908,0.00014038,2]
[337559354,1725817840072,-797.05647092,0.00014038,2]
[337559356,1725817840082,-707.98947007,0.00014038,2]
[337559358,1725817840096,-292.01052993,0.00014038,2]
[337559360,1725817840105,-1000.0,0.00014038,2]
[337559362,1725817840113,-1000.0,0.00014038,2]
[337559364,1725817840123,-1000.0,0.00014038,2]
[337559365,1725817840132,-1000.0,0.00014038,2]
[337559366,1725817840142,-1000.0,0.00014038,2]
[337559367,1725817840151,-567.45758622,0.00014038,2]
[337559368,1725817840162,-432.54241378,0.00014038,2]
[337559369,1725817840172,-1000.0,0.00014038,2]
[337559370,1725817840181,-107.45758122,0.00014038,2]
[337559375,1725817842631,-892.54241878,0.00014038,2]
[337559376,1725817842641,-216.71722669,0.00014038,2]
[337559377,1725817842688,-549.57521896,0.00014038,2]
[337559378,1725817842747,-233.70755435,0.00014038,2]
[337559379,1725817842757,-1000.0,0.00014038,2]
[337559380,1725817842766,-269.29244565,0.00014038,2]
[337559381,1725817842778,-730.70755435,0.00014038,2]
[337559382,1725817842787,-1000.0,0.00014038,2]